[Event "26th Troya Open 2018"]
[Site "Canakkale"]
[Date "2018.08.05"]
[Round "3.6"]
[White "Eminov, Orkhan"]
[Black "Gulsoy, Mustafa Alpago"]
[Result "1/2-1/2"]
[ECO "B51"]
[WhiteElo "2272"]
[BlackElo "1978"]
[Annotator "NA"]
[PlyCount "103"]
[EventDate "2018.08.06"]
[EventType "swiss"]
[EventCountry "TUR"]
[SourceTitle "playchess.com"]
[Source "ChessBase"]
[SourceQuality "1"]
[TimeControl "5400+30"]

1. e4 {[%emt 0:00:30]} c5 {[%emt 0:00:30]} 2. Nf3 {[%emt 0:01:30]} d6 {[%emt 0:00:00]} 3. Bb5+ {[%emt 0:00:30]} Nd7 {[%emt 0:00:00]} 4. d4 {[%emt 0:00:30]} cxd4 {[%emt 0:00:30]} 5. Qxd4 {[%emt 0:01:30]} a6 {[%emt 0:00:30]} 6. Bxd7+ {[%emt 0:00:30]} Bxd7 {[%emt 0:00:30]} 7. Bg5 {[%emt 0:00:00]} Qc7 {[%emt 0:02:30]} 8. Nc3 {[%emt 0:01:00]} e6 {[%emt 0:03:30]} 9. O-O {[%emt 0:07:30]} f6 {[%emt 0:03:30]} 10. Bh4 {[%emt 0:00:30]} Nh6 {[%emt 0:00:30]} 11. Rad1 {[%emt 0:01:30]} Be7 {[%emt 0:06:30]} 12. Nd2 {[%emt 0:05:30]} b5 {[%emt 0:04:30]} 13. Kh1 {[%emt 0:01:30]} Rd8 {[%emt 0:02:30]} 14. a3 {[%emt 0:07:30]} Nf7 {[%emt 0:07:30]} 15. f4 {[%emt 0:00:30]} Bc6 {[%emt 0:00:30]} 16. Nf3 {[%emt 0:02:30]} e5 {[%emt 0:09:30]} 17. Qd2 {[%emt 0:11:30]} O-O {[%emt 0:00:30]} 18. Bf2 {[%emt 0:06:30]} Rfe8 {[%emt 0:03:30]} 19. Nh4 {[%emt 0:00:30]} Bf8 {[%emt 0:02:30]} 20. Nf5 {[%emt 0:01:30]} Qb7 {[%emt 0:01:30]} 21. Rfe1 {[%emt 0:03:30]} g6 {[%emt 0:02:30]} 22. Ne3 {[%emt 0:04:30]} Bg7 {[%emt 0:03:30]} 23. Ned5 {[%emt 0:07:30]} f5 {[%emt 0:01:30]} 24. exf5 {[%emt 0:02:30]} gxf5 {[%emt 0:03:30]} 25. Bh4 {[%emt 0:00:30]} Rd7 {[%emt 0:08:30]} 26. Qf2 {[%emt 0:02:30]} Nh6 {[%emt 0:07:30]} 27. h3 {[%emt 0:03:30]} Re6 {[%emt 0:01:30]} 28. Re3 {[%emt 0:03:30]} Rf7 {[%emt 0:02:30]} 29. Rg3 {[%emt 0:01:30]} Kh8 {[%emt 0:01:30]} 30. Qe2 {[%emt 0:01:30]} a5 {[%emt 0:01:39]} 31. b4 {[%emt 0:01:50]} a4 {[%emt 0:00:21]} 32. Re3 {[%emt 0:02:19]} Ng8 {[%emt 0:01:28]} 33. Qd2 {[%emt 0:04:59]} Nf6 {[%emt 0:01:55]} 34. Bxf6 {[%emt 0:02:21]} Bxf6 {[%emt 0:00:30]} 35. Nxf6 {[%emt 0:00:10]} Rfxf6 {[%emt 0:00:23]} 36. Nd5 {[%emt 0:02:15]} Rf8 {[%emt 0:01:09]} 37. fxe5 {[%emt 0:02:41]} dxe5 {[%emt 0:00:26]} 38. Nf4 {[%emt 0:00:20]} Ree8 {[%emt 0:02:34]} 39. Qc3 {[%emt 0:00:34]} Be4 {[%emt 0:00:27]} 40. Kh2 {[%emt 0:02:14]} Rg8 {[%emt 0:01:08]} 41. g4 {[%emt 0:02:05]} Qg7 {[%emt 0:05:29]} 42. Nh5 {[%emt 0:00:16]} Qe7 {[%emt 0:00:55]} 43. Rd2 {[%emt 0:01:22]} Ba8 {[%emt 0:02:37]} 44. Rde2 {[%emt 0:03:53]} Qb7 {[%emt 0:02:55]} 45. Rxe5 {[%emt 0:00:35]} Qh1+ {[%emt 0:00:35]} 46. Kg3 {[%emt 0:00:30]} Qg1+ {[%emt 0:00:00]} 47. Kf4 {[%emt 0:00:01]} Qf1+ {[%emt 0:00:18]} 48. Kg3 {[%emt 0:00:09]} Qg1+ {[%emt 0:00:30]} 49. Kf4 {[%emt 0:00:00]} Qf1+ {[%emt 0:03:19]} 50. Kg3 {[%emt 0:00:00]} Qg1+ {[%emt 0:00:23]} 51. Kf4 {[%emt 0:00:14]} Qf1+ {[%emt 0:00:28]} 52. Kg3 {[%emt 0:00:30]} 1/2-1/2

[Event "26th Troya Open 2018"]
[Site "Canakkale"]
[Date "2018.08.05"]
[Round "3.7"]
[White "Kirilmaz, Emre"]
[Black "Olcum, Ahmet"]
[Result "1/2-1/2"]
[ECO "A48"]
[WhiteElo "1895"]
[BlackElo "2274"]
[Annotator "NA"]
[PlyCount "60"]
[EventDate "2018.08.06"]
[EventType "swiss"]
[EventCountry "TUR"]
[SourceTitle "playchess.com"]
[Source "ChessBase"]
[SourceQuality "1"]
[TimeControl "5400+30"]

1. d4 {[%emt 0:00:30]} d6 {[%emt 0:00:30]} 2. c3 {[%emt 0:00:00]} g6 {[%emt 0:02:30]} 3. Bg5 {[%emt 0:04:00]} Bg7 {[%emt 0:00:30]} 4. e4 {[%emt 0:00:30]} Nf6 {[%emt 0:00:30]} 5. Nd2 {[%emt 0:00:30]} Nbd7 {[%emt 0:01:30]} 6. Ngf3 {[%emt 0:03:30]} e5 {[%emt 0:03:30]} 7. dxe5 {[%emt 0:00:30]} dxe5 {[%emt 0:01:30]} 8. Bc4 {[%emt 0:00:00]} O-O {[%emt 0:00:30]} 9. O-O {[%emt 0:00:00]} c6 {[%emt 0:04:30]} 10. Qe2 {[%emt 0:01:30]} Qc7 {[%emt 0:00:30]} 11. Rad1 {[%emt 0:00:30]} b5 {[%emt 0:03:30]} 12. Bd3 {[%emt 0:00:30]} a6 {[%emt 0:07:30]} 13. Rfe1 {[%emt 0:02:30]} c5 {[%emt 0:02:30]} 14. c4 {[%emt 0:00:30]} b4 {[%emt 0:00:00]} 15. Nf1 {[%emt 0:00:30]} Bb7 {[%emt 0:00:00]} 16. Qc2 {[%emt 0:01:30]} h6 {[%emt 0:06:30]} 17. Bc1 {[%emt 0:01:30]} Ne8 {[%emt 0:03:30]} 18. Ne3 {[%emt 0:00:30]} Nd6 {[%emt 0:00:30]} 19. Nd2 {[%emt 0:01:30]} Rfc8 {[%emt 0:08:30]} 20. b3 {[%emt 0:05:30]} Nf8 {[%emt 0:01:30]} 21. Nd5 {[%emt 0:00:30]} Qd8 {[%emt 0:01:30]} 22. Bb2 {[%emt 0:02:30]} Ne6 {[%emt 0:01:30]} 23. Nf3 {[%emt 0:02:30]} f6 {[%emt 0:16:30]} 24. Qd2 {[%emt 0:02:30]} a5 {[%emt 0:00:30]} 25. Bb1 {[%emt 0:00:30]} Nd4 {[%emt 0:00:30]} 26. Qe3 {[%emt 0:18:30]} Kh7 {[%emt 0:08:30]} 27. Nxd4 {[%emt 0:16:30]} cxd4 {[%emt 0:03:30]} 28. Qg3 {[%emt 0:01:30]} g5 {[%emt 0:04:50]} 29. h4 {[%emt 0:01:30]} Bc6 {[%emt 0:00:37]} 30. hxg5 {[%emt 0:01:30]} fxg5 {[%emt 0:03:46]} 1/2-1/2

[Event "26th Troya Open 2018"]
[Site "Canakkale"]
[Date "2018.08.05"]
[Round "4.2"]
[White "Mgeladze, Tamaz"]
[Black "Abdulla, Khayala"]
[Result "1/2-1/2"]
[ECO "A29"]
[WhiteElo "2400"]
[BlackElo "2245"]
[Annotator "RC"]
[PlyCount "156"]
[EventDate "2018.08.06"]
[EventType "swiss"]
[EventCountry "TUR"]
[SourceTitle "playchess.com"]
[Source "ChessBase"]
[SourceQuality "1"]
[TimeControl "5400+30"]

1. c4 {[%emt 0:09:30]} e5 {[%emt 0:01:30]} 2. Nc3 {[%emt 0:00:30]} Nf6 {[%emt 0:00:00]} 3. Nf3 {[%emt 0:02:30]} Nc6 {[%emt 0:01:00]} 4. g3 {[%emt 0:02:30]} d5 {[%emt 0:01:30]} 5. cxd5 {[%emt 0:00:30]} Nxd5 {[%emt 0:00:00]} 6. Bg2 {[%emt 0:03:30]} Nb6 {[%emt 0:00:00]} 7. O-O {[%emt 0:00:00]} Be7 {[%emt 0:00:00]} 8. d3 {[%emt 0:00:00]} O-O {[%emt 0:00:00]} 9. Be3 {[%emt 0:00:30]} Be6 {[%emt 0:03:30]} 10. Rc1 {[%emt 0:01:30]} f5 {[%emt 0:03:30]} 11. a3 {[%emt 0:04:30]} Bf6 {[%emt 0:01:30]} 12. b4 {[%emt 0:06:30]} Nd4 {[%emt 0:06:30]} 13. Bxd4 {[%emt 0:14:30]} exd4 {[%emt 0:00:30]} 14. Na4 {[%emt 0:00:00]} Nxa4 {[%emt 0:01:30]} 15. Qxa4 {[%emt 0:00:00]} a6 {[%emt 0:05:30]} 16. Qc2 {[%emt 0:06:30]} c6 {[%emt 0:00:30]} 17. Rb1 {[%emt 0:00:00]} Re8 {[%emt 0:06:30]} 18. Nd2 {[%emt 0:01:00]} Qe7 {[%emt 0:05:30]} 19. a4 {[%emt 0:01:30]} Qf7 {[%emt 0:02:30]} 20. Rfe1 {[%emt 0:02:30]} Re7 {[%emt 0:05:30]} 21. Nb3 {[%emt 0:02:30]} Rae8 {[%emt 0:02:30]} 22. Nc5 {[%emt 0:01:30]} Bd5 {[%emt 0:04:30]} 23. Bxd5 {[%emt 0:00:30]} Qxd5 {[%emt 0:00:30]} 24. Qb3 {[%emt 0:00:30]} Qxb3 {[%emt 0:02:30]} 25. Rxb3 {[%emt 0:01:30]} Be5 {[%emt 0:00:30]} 26. Rb2 {[%emt 0:07:30]} Bd6 {[%emt 0:01:30]} 27. a5 {[%emt 0:02:30]} Bxc5 {[%emt 0:03:30]} 28. bxc5 {[%emt 0:00:30]} Re5 {[%emt 0:00:00]} 29. Rxb7 {[%emt 0:02:30]} Rxc5 {[%emt 0:00:00]} 30. Rd7 {[%emt 0:02:30]} Rd5 {[%emt 0:03:30]} 31. Rc7 {[%emt 0:02:30]} Rxa5 {[%emt 0:11:30]} 32. Rxc6 {[%emt 0:00:30]} Kf7 {[%emt 0:01:30]} 33. Rd6 {[%emt 0:00:30]} Ra4 {[%emt 0:00:30]} 34. Kf1 {[%emt 0:00:30]} Re7 {[%emt 0:00:30]} 35. Rc1 {[%emt 0:02:30]} Ra2 {[%emt 0:07:51]} 36. Rxd4 {[%emt 0:02:10]} Raxe2 {[%emt 0:02:27]} 37. Ra1 {[%emt 0:01:53]} R7e6 {[%emt 0:01:46]} 38. Rf4 {[%emt 0:03:25]} Kf6 {[%emt 0:05:02]} 39. h4 {[%emt 0:00:23]} h5 {[%emt 0:01:14]} 40. Ra5 {[%emt 0:02:51]} g6 {[%emt 0:00:30]} 41. Rfa4 {[%emt 0:00:30]} Rd2 {[%emt 0:00:30]} 42. Rd4 {[%emt 0:01:25]} Kg7 {[%emt 0:04:46]} 43. Rd7+ {[%emt 0:00:33]} Kh6 {[%emt 0:01:37]} 44. Ra4 {[%emt 0:01:20]} Rd1+ {[%emt 0:00:45]} 45. Kg2 {[%emt 0:00:02]} Rd2 {[%emt 0:00:13]} 46. Rdd4 {[%emt 0:05:59]} Ree2 {[%emt 0:01:27]} 47. Rf4 {[%emt 0:00:30]} Rxd3 {[%emt 0:00:30]} 48. Rxa6 {[%emt 0:00:00]} Rd5 {[%emt 0:00:00]} 49. Ra7 {[%emt 0:00:00]} Rde5 {[%emt 0:01:02]} 50. Rd4 {[%emt 0:01:10]} Re7 {[%emt 0:00:18]} 51. Ra8 {[%emt 0:00:21]} Re8 {[%emt 0:00:30]} 52. Raa4 {[%emt 0:00:00]} Kg7 {[%emt 0:00:37]} 53. Kf3 {[%emt 0:00:45]} Rb2 {[%emt 0:00:58]} 54. Ra7+ {[%emt 0:01:38]} Kf6 {[%emt 0:00:02]} 55. Rdd7 {[%emt 0:00:16]} Rb3+ {[%emt 0:01:37]} 56. Kg2 {[%emt 0:00:01]} Rb6 {[%emt 0:00:42]} 57. Rf7+ {[%emt 0:00:53]} Ke5 {[%emt 0:00:59]} 58. Ra5+ {[%emt 0:00:37]} Ke6 {[%emt 0:00:30]} 59. Rg7 {[%emt 0:00:00]} Kf6 {[%emt 0:00:16]} 60. Raa7 {[%emt 0:00:22]} Rf8 {[%emt 0:00:03]} 61. Rh7 {[%emt 0:01:20]} Rc6 {[%emt 0:00:15]} 62. Rhb7 {[%emt 0:00:24]} Rd6 {[%emt 0:00:37]} 63. Kf3 {[%emt 0:00:30]} Rd3+ {[%emt 0:00:00]} 64. Kf4 {[%emt 0:00:59]} Rd4+ {[%emt 0:00:18]} 65. Ke3 {[%emt 0:00:03]} Re4+ {[%emt 0:00:05]} 66. Kf3 {[%emt 0:00:30]} Re6 {[%emt 0:00:05]} 67. Rd7 {[%emt 0:01:21]} Rb6 {[%emt 0:00:09]} 68. Re7 {[%emt 0:01:03]} Rb3+ {[%emt 0:02:00]} 69. Re3 {[%emt 0:00:02]} Rxe3+ {[%emt 0:00:37]} 70. fxe3 {[%emt 0:00:24]} Re8 {[%emt 0:00:14]} 71. Ra6+ {[%emt 0:00:30]} Kf7 {[%emt 0:00:05]} 72. Rd6 {[%emt 0:00:02]} Kg7 {[%emt 0:00:16]} 73. Ke2 {[%emt 0:01:09]} Ra8 {[%emt 0:01:11]} 74. Rc6 {[%emt 0:00:25]} Ra2+ {[%emt 0:00:50]} 75. Kf3 {[%emt 0:00:03]} Ra1 {[%emt 0:01:37]} 76. Rd6 {[%emt 0:00:54]} Ra4 {[%emt 0:00:34]} 77. Rd4 {[%emt 0:00:04]} Ra6 {[%emt 0:00:31]} 78. Kf4 {[%emt 0:00:30]} Kf6 {[%emt 0:00:00]} 1/2-1/2

[Event "26th Troya Open 2018"]
[Site "Canakkale"]
[Date "2018.08.05"]
[Round "4.13"]
[White "Sar, Can"]
[Black "Kurt, Murat"]
[Result "1-0"]
[ECO "B12"]
[WhiteElo "1786"]
[BlackElo "1594"]
[Annotator "NA RC"]
[PlyCount "69"]
[EventDate "2018.08.06"]
[EventType "swiss"]
[EventCountry "TUR"]
[SourceTitle "playchess.com"]
[Source "ChessBase"]
[SourceQuality "1"]
[TimeControl "5400+30"]

1. e4 c6 2. d4 d5 3. e5 Bf5 4. Nf3 e6 5. Be2 Nd7 {[%emt 0:01:30]} 6. O-O {[%emt 0:04:00]} c5 {[%emt 0:00:30]} 7. Be3 {[%emt 0:00:00]} Ne7 {[%emt 0:00:30]} 8. Nbd2 {[%emt 0:00:00]} Nc6 {[%emt 0:01:30]} 9. c4 {[%emt 0:06:30]} Qb6 {[%emt 0:11:30]} 10. Nb3 {[%emt 0:01:30]} dxc4 {[%emt 0:07:30]} 11. Bxc4 {[%emt 0:00:30]} Be7 {[%emt 0:06:30]} 12. Qe2 {[%emt 0:05:30]} Qc7 {[%emt 0:00:30]} 13. Rac1 {[%emt 0:02:30]} a6 {[%emt 0:03:30]} 14. dxc5 {[%emt 0:07:30]} Ndxe5 {[%emt 0:01:30]} 15. Bf4 {[%emt 0:00:30]} Nxf3+ {[%emt 0:00:30]} 16. Qxf3 {[%emt 0:00:00]} Qc8 {[%emt 0:04:30]} 17. Bd6 {[%emt 0:07:00]} O-O {[%emt 0:04:30]} 18. Rfd1 {[%emt 0:00:30]} a5 {[%emt 0:13:30]} 19. Bb5 {[%emt 0:06:30]} Re8 {[%emt 0:04:30]} 20. Bxc6 {[%emt 0:01:30]} Bg4 {[%emt 0:04:30]} 21. Qxg4 {[%emt 0:02:30]} Qxc6 {[%emt 0:06:30]} 22. Bxe7 {[%emt 0:00:00]} Rxe7 {[%emt 0:00:30]} 23. Rd6 {[%emt 0:00:00]} Qc7 {[%emt 0:00:30]} 24. Nd4 {[%emt 0:00:30]} Rd8 {[%emt 0:03:30]} 25. Rxd8+ {[%emt 0:00:30]} Qxd8 {[%emt 0:00:00]} 26. Nb5 {[%emt 0:00:00]} Rd7 {[%emt 0:01:00]} 27. Nc3 {[%emt 0:00:00]} Qc8 {[%emt 0:01:30]} 28. Rd1 {[%emt 0:01:30]} Rc7 {[%emt 0:00:30]} 29. Qd4 {[%emt 0:00:00]} Kf8 {[%emt 0:00:30]} 30. Qd8+ {[%emt 0:00:00]} Qxd8 {[%emt 0:00:30]} 31. Rxd8+ {[%emt 0:00:30]} Ke7 {[%emt 0:00:00]} 32. Rb8 {[%emt 0:00:30]} Rxc5 {[%emt 0:00:00]} 33. Rxb7+ {[%emt 0:00:00]} Ke8 {[%emt 0:00:30]} 34. Kf1 {[%emt 0:00:00]} h5 {[%emt 0:02:30]} 35. Rb5 {[%emt 0:00:00]} 1-0

[Event "26th Troya Open 2018"]
[Site "Canakkale"]
[Date "2018.08.05"]
[Round "4.14"]
[White "Ulupinar, Furkan"]
[Black "Ileri, Oktay"]
[Result "1/2-1/2"]
[ECO "C30"]
[WhiteElo "1412"]
[BlackElo "1697"]
[Annotator "NA RC"]
[PlyCount "136"]
[EventDate "2018.08.06"]
[EventType "swiss"]
[EventCountry "TUR"]
[SourceTitle "playchess.com"]
[Source "ChessBase"]
[SourceQuality "1"]
[TimeControl "5400+30"]

1. e4 e5 2. f4 Bc5 3. Nf3 d6 {[%emt 0:01:30]} 4. Nc3 {[%emt 0:03:00]} Nf6 {[%emt 0:00:30]} 5. Bc4 {[%emt 0:04:30]} O-O {[%emt 0:01:30]} 6. d3 {[%emt 0:00:30]} Bg4 {[%emt 0:02:30]} 7. Na4 {[%emt 0:02:30]} Bb6 {[%emt 0:00:30]} 8. Nxb6 {[%emt 0:02:30]} axb6 {[%emt 0:00:00]} 9. h3 {[%emt 0:00:30]} Bxf3 {[%emt 0:01:00]} 10. Qxf3 {[%emt 0:01:30]} Nc6 {[%emt 0:00:30]} 11. c3 {[%emt 0:03:30]} exf4 {[%emt 0:02:30]} 12. Bxf4 {[%emt 0:08:30]} Ne5 {[%emt 0:00:00]} 13. Bxe5 {[%emt 0:01:30]} dxe5 {[%emt 0:00:00]} 14. g4 {[%emt 0:01:30]} c6 {[%emt 0:07:30]} 15. a3 {[%emt 0:05:30]} b5 {[%emt 0:00:30]} 16. Ba2 {[%emt 0:00:30]} Nd7 {[%emt 0:02:30]} 17. h4 {[%emt 0:00:30]} Nc5 {[%emt 0:00:30]} 18. Rd1 {[%emt 0:03:30]} Qe7 {[%emt 0:02:30]} 19. g5 {[%emt 0:03:30]} Rfd8 {[%emt 0:06:30]} 20. Qg3 {[%emt 0:05:30]} Rd6 {[%emt 0:08:30]} 21. Rf1 {[%emt 0:03:30]} Rf8 {[%emt 0:00:30]} 22. Rf5 {[%emt 0:01:30]} Nd7 {[%emt 0:01:30]} 23. h5 {[%emt 0:01:30]} Kh8 {[%emt 0:02:30]} 24. Ke2 {[%emt 0:05:30]} f6 {[%emt 0:15:30]} 25. Rdf1 {[%emt 0:02:30]} Nc5 {[%emt 0:00:30]} 26. R5f3 {[%emt 0:03:30]} Rfd8 {[%emt 0:09:30]} 27. gxf6 {[%emt 0:02:30]} gxf6 {[%emt 0:03:30]} 28. Rg1 {[%emt 0:02:30]} Ne6 {[%emt 0:00:30]} 29. h6 {[%emt 0:01:30]} Ng5 {[%emt 0:00:30]} 30. Re3 {[%emt 0:03:30]} Qd7 {[%emt 0:02:30]} 31. Rd1 {[%emt 0:02:30]} b6 {[%emt 0:04:30]} 32. Qg2 {[%emt 0:01:30]} Qe8 {[%emt 0:01:30]} 33. Qg4 {[%emt 0:00:30]} Qd7 {[%emt 0:03:30]} 34. Qf5 {[%emt 0:03:30]} Qxf5 {[%emt 0:00:30]} 35. exf5 {[%emt 0:00:00]} c5 {[%emt 0:00:30]} 36. Rg1 {[%emt 0:03:43]} c4 {[%emt 0:04:18]} 37. Rgg3 {[%emt 0:00:42]} Nf7 {[%emt 0:03:32]} 38. Rh3 {[%emt 0:03:29]} Kg8 {[%emt 0:02:43]} 39. Bb1 {[%emt 0:03:59]} Kf8 {[%emt 0:00:30]} 40. Reg3 {[%emt 0:01:25]} Ng5 {[%emt 0:00:30]} 41. Rh1 {[%emt 0:01:59]} cxd3+ {[%emt 0:04:09]} 42. Rxd3 {[%emt 0:00:51]} e4 {[%emt 0:02:32]} 43. Rxd6 {[%emt 0:01:17]} Rxd6 {[%emt 0:00:00]} 44. Ke3 {[%emt 0:01:59]} Rd5 {[%emt 0:00:10]} 45. Rf1 {[%emt 0:01:14]} Re5 {[%emt 0:01:08]} 46. Rf4 {[%emt 0:01:00]} Nf7 {[%emt 0:01:01]} 47. Rxe4 {[%emt 0:00:59]} Rxf5 {[%emt 0:02:48]} 48. Re8+ {[%emt 0:01:51]} Kxe8 {[%emt 0:00:30]} 49. Bxf5 {[%emt 0:00:00]} Nxh6 {[%emt 0:00:15]} 50. Bxh7 {[%emt 0:00:00]} Kd7 {[%emt 0:00:24]} 51. Kd4 {[%emt 0:00:49]} Kc6 {[%emt 0:00:31]} 52. Be4+ {[%emt 0:00:43]} Kd6 {[%emt 0:00:10]} 53. Bd3 {[%emt 0:00:27]} Kc6 {[%emt 0:00:26]} 54. Be4+ {[%emt 0:00:12]} Kd6 {[%emt 0:00:09]} 55. c4 {[%emt 0:01:41]} bxc4 {[%emt 0:00:42]} 56. Kxc4 {[%emt 0:00:40]} Nf7 {[%emt 0:00:33]} 57. Kb5 {[%emt 0:00:05]} Kc7 {[%emt 0:00:01]} 58. Bf3 {[%emt 0:00:17]} Nd6+ {[%emt 0:00:29]} 59. Kb4 {[%emt 0:01:09]} Nf7 {[%emt 0:00:11]} 60. a4 {[%emt 0:00:00]} Ne5 {[%emt 0:00:54]} 61. Be4 {[%emt 0:00:48]} Nd7 {[%emt 0:00:18]} 62. Kb5 {[%emt 0:00:29]} Ne5 {[%emt 0:01:07]} 63. b4 {[%emt 0:00:25]} Nf7 {[%emt 0:00:06]} 64. Bf3 {[%emt 0:00:52]} Nd6+ {[%emt 0:00:34]} 65. Ka6 {[%emt 0:00:29]} f5 {[%emt 0:00:00]} 66. Bd5 {[%emt 0:01:00]} f4 {[%emt 0:00:00]} 67. b5 {[%emt 0:00:20]} Nc8 {[%emt 0:00:38]} 68. Bf3 {[%emt 0:01:21]} Nd6 {[%emt 0:00:07]} 1/2-1/2

[Event "26th Troya Open 2018"]
[Site "Canakkale"]
[Date "2018.08.05"]
[Round "4.16"]
[White "Koc, Azra Ece"]
[Black "Ozkurt, Deniz"]
[Result "1-0"]
[ECO "A48"]
[WhiteElo "1592"]
[BlackElo "1635"]
[Annotator "NA RC"]
[PlyCount "94"]
[EventDate "2018.08.06"]
[EventType "swiss"]
[EventCountry "TUR"]
[SourceTitle "playchess.com"]
[Source "ChessBase"]
[SourceQuality "1"]
[TimeControl "5400+30"]

1. d4 c5 2. c3 g6 3. Nf3 {[%emt 0:02:30]} Bg7 {[%emt 0:01:30]} 4. Bf4 {[%emt 0:00:30]} Nf6 {[%emt 0:00:00]} 5. e3 {[%emt 0:01:30]} O-O {[%emt 0:00:00]} 6. Nbd2 {[%emt 0:00:00]} b6 {[%emt 0:00:30]} 7. Be2 {[%emt 0:01:00]} d6 {[%emt 0:00:30]} 8. O-O {[%emt 0:03:30]} Bb7 {[%emt 0:00:00]} 9. h3 {[%emt 0:01:30]} Nbd7 {[%emt 0:00:00]} 10. Bh2 {[%emt 0:02:30]} Re8 {[%emt 0:02:30]} 11. Rc1 {[%emt 0:08:30]} Ne4 {[%emt 0:03:30]} 12. Nxe4 {[%emt 0:09:30]} Bxe4 {[%emt 0:00:30]} 13. Qd2 {[%emt 0:05:30]} Nf6 {[%emt 0:00:30]} 14. c4 {[%emt 0:03:30]} Bb7 {[%emt 0:02:30]} 15. dxc5 {[%emt 0:07:30]} Ne4 {[%emt 0:00:30]} 16. Qc2 {[%emt 0:01:30]} Nxc5 {[%emt 0:00:30]} 17. b4 {[%emt 0:02:30]} Ne6 {[%emt 0:03:30]} 18. Rfd1 {[%emt 0:02:30]} Qc7 {[%emt 0:00:30]} 19. Nd4 {[%emt 0:01:30]} Nxd4 {[%emt 0:02:30]} 20. exd4 {[%emt 0:00:00]} Rac8 {[%emt 0:00:30]} 21. Qb3 {[%emt 0:02:00]} Qb8 {[%emt 0:03:30]} 22. Bg4 {[%emt 0:05:30]} Rcd8 {[%emt 0:02:30]} 23. Bf3 {[%emt 0:06:30]} Qa8 {[%emt 0:00:30]} 24. Bxb7 {[%emt 0:00:00]} Qxb7 {[%emt 0:00:00]} 25. Bf4 {[%emt 0:02:00]} Qe4 {[%emt 0:05:00]} 26. Be3 {[%emt 0:01:30]} e6 {[%emt 0:01:30]} 27. c5 {[%emt 0:01:30]} bxc5 {[%emt 0:04:30]} 28. dxc5 {[%emt 0:01:30]} dxc5 {[%emt 0:00:30]} 29. Bxc5 {[%emt 0:01:30]} Qb7 {[%emt 0:00:30]} 30. Qa4 {[%emt 0:02:30]} a6 {[%emt 0:00:30]} 31. Qa5 {[%emt 0:02:30]} Rd5 {[%emt 0:04:30]} 32. Rxd5 {[%emt 0:03:30]} exd5 {[%emt 0:00:30]} 33. a4 {[%emt 0:00:32]} Rb8 {[%emt 0:03:30]} 34. Bd6 {[%emt 0:02:43]} Rc8 {[%emt 0:00:30]} 35. Rxc8+ {[%emt 0:00:25]} Qxc8 {[%emt 0:00:30]} 36. Qxd5 {[%emt 0:00:00]} Bh6 {[%emt 0:00:30]} 37. Qc5 {[%emt 0:02:29]} Qe8 {[%emt 0:00:30]} 38. Qc7 {[%emt 0:02:00]} Bf8 {[%emt 0:00:30]} 39. Bxf8 {[%emt 0:01:32]} Kxf8 {[%emt 0:00:30]} 40. Qc5+ {[%emt 0:00:30]} Kg8 {[%emt 0:02:30]} 41. b5 {[%emt 0:02:57]} axb5 {[%emt 0:00:30]} 42. axb5 {[%emt 0:00:06]} Qe1+ {[%emt 0:00:30]} 43. Kh2 {[%emt 0:00:04]} Qe4 {[%emt 0:00:30]} 44. b6 {[%emt 0:00:38]} Qf4+ {[%emt 0:00:30]} 45. g3 {[%emt 0:00:14]} Qd2 {[%emt 0:00:00]} 46. b7 {[%emt 0:00:53]} Qb2 {[%emt 0:00:00]} 47. Qa7 {[%emt 0:00:02]} Qc2 {[%emt 0:00:30]} 1-0

[Event "26th Troya Open 2018"]
[Site "Canakkale"]
[Date "2018.08.05"]
[Round "4.17"]
[White "Ceylan, Arda"]
[Black "Ozturk, Ali"]
[Result "1-0"]
[ECO "E18"]
[WhiteElo "1617"]
[BlackElo "1566"]
[Annotator "NA RC"]
[PlyCount "64"]
[EventDate "2018.08.06"]
[EventType "swiss"]
[EventCountry "TUR"]
[SourceTitle "playchess.com"]
[Source "ChessBase"]
[SourceQuality "1"]
[TimeControl "5400+30"]

1. d4 Nf6 2. Nf3 e6 3. c4 b6 4. g3 Bb7 5. Bg2 Be7 {[%emt 0:01:30]} 6. O-O {[%emt 0:02:00]} O-O {[%emt 0:00:30]} 7. Nc3 {[%emt 0:02:30]} d5 {[%emt 0:00:30]} 8. Ne5 {[%emt 0:03:30]} Nbd7 {[%emt 0:08:30]} 9. Qa4 {[%emt 0:08:30]} Nxe5 {[%emt 0:16:30]} 10. dxe5 {[%emt 0:01:30]} Ne4 {[%emt 0:01:30]} 11. Nxe4 {[%emt 0:07:30]} dxe4 {[%emt 0:00:30]} 12. Qc2 {[%emt 0:01:30]} Qd4 {[%emt 0:03:30]} 13. Rd1 {[%emt 0:02:30]} Qxe5 {[%emt 0:10:30]} 14. Bf4 {[%emt 0:02:30]} Qc5 {[%emt 0:05:30]} 15. Rd7 {[%emt 0:01:30]} Bd8 {[%emt 0:07:30]} 16. Bxe4 {[%emt 0:05:30]} Bxe4 {[%emt 0:00:30]} 17. Qxe4 {[%emt 0:00:00]} Rc8 {[%emt 0:02:30]} 18. Rb1 {[%emt 0:09:00]} a5 {[%emt 0:03:30]} 19. Qb7 {[%emt 0:03:30]} Bf6 {[%emt 0:02:30]} 20. Bxc7 {[%emt 0:00:30]} Qxc4 {[%emt 0:01:30]} 21. Qxb6 {[%emt 0:06:30]} Qxa2 {[%emt 0:01:30]} 22. Rbd1 {[%emt 0:01:30]} Qxb2 {[%emt 0:03:30]} 23. Qxa5 {[%emt 0:02:30]} Qxe2 {[%emt 0:02:30]} 24. Bb6 {[%emt 0:05:30]} Ra8 {[%emt 0:10:44]} 25. Qb4 {[%emt 0:02:30]} Ra1 {[%emt 0:02:59]} 26. Rxa1 {[%emt 0:00:30]} Bxa1 {[%emt 0:00:05]} 27. Bc5 {[%emt 0:06:30]} Re8 {[%emt 0:06:14]} 28. Qb7 {[%emt 0:12:55]} Qh5 {[%emt 0:01:55]} 29. Re7 {[%emt 0:03:11]} Rd8 {[%emt 0:00:48]} 30. Rd7 {[%emt 0:03:07]} Re8 {[%emt 0:01:22]} 31. Qc6 {[%emt 0:05:18]} Bf6 {[%emt 0:03:54]} 32. Rd5 {[%emt 0:00:50]} h6 {[%emt 0:02:11]} 1-0

[Event "26th Troya Open 2018"]
[Site "Canakkale"]
[Date "2018.08.05"]
[Round "4.18"]
[White "Gurtekin, Emre"]
[Black "Kurt, Emre"]
[Result "0-1"]
[ECO "D46"]
[WhiteElo "1529"]
[BlackElo "1642"]
[Annotator "NA RC"]
[PlyCount "60"]
[EventDate "2018.08.06"]
[EventType "swiss"]
[EventCountry "TUR"]
[SourceTitle "playchess.com"]
[Source "ChessBase"]
[SourceQuality "1"]
[TimeControl "5400+30"]

1. d4 {[%emt 0:03:30]} d5 {[%emt 0:00:30]} 2. c4 {[%emt 0:00:30]} e6 {[%emt 0:00:00]} 3. Nc3 {[%emt 0:00:30]} Nf6 {[%emt 0:00:00]} 4. e3 {[%emt 0:00:30]} c6 {[%emt 0:00:30]} 5. Nf3 {[%emt 0:00:30]} Bd6 {[%emt 0:00:30]} 6. Bd3 {[%emt 0:00:30]} Nbd7 {[%emt 0:00:30]} 7. O-O {[%emt 0:00:00]} a6 {[%emt 0:00:30]} 8. Re1 {[%emt 0:00:00]} dxc4 {[%emt 0:04:30]} 9. Bxc4 {[%emt 0:00:30]} b5 {[%emt 0:00:30]} 10. Bd3 {[%emt 0:00:30]} Bb7 {[%emt 0:00:00]} 11. e4 {[%emt 0:00:30]} e5 {[%emt 0:00:00]} 12. dxe5 {[%emt 0:04:30]} Nxe5 {[%emt 0:00:30]} 13. Nxe5 {[%emt 0:01:30]} Bxe5 {[%emt 0:00:30]} 14. f4 {[%emt 0:00:00]} Bd4+ {[%emt 0:02:30]} 15. Be3 {[%emt 0:00:00]} Bxe3+ {[%emt 0:00:30]} 16. Rxe3 {[%emt 0:00:00]} Qd4 {[%emt 0:00:00]} 17. Kf2 {[%emt 0:05:00]} O-O-O {[%emt 0:13:00]} 18. Be2 {[%emt 0:07:30]} c5 {[%emt 0:03:30]} 19. Qc2 {[%emt 0:01:30]} c4 {[%emt 0:04:30]} 20. Bf3 {[%emt 0:11:30]} Qc5 {[%emt 0:15:30]} 21. Rae1 {[%emt 0:07:30]} Rd3 {[%emt 0:04:30]} 22. e5 {[%emt 0:13:30]} Rhd8 {[%emt 0:03:30]} 23. R1e2 {[%emt 0:05:30]} Rxe3 {[%emt 0:01:30]} 24. Rxe3 {[%emt 0:00:00]} Rd3 {[%emt 0:00:30]} 25. Qe2 {[%emt 0:01:00]} Bxf3 {[%emt 0:06:30]} 26. Qxf3 {[%emt 0:02:30]} Rxe3 {[%emt 0:00:30]} 27. Qa8+ {[%emt 0:01:30]} Kc7 {[%emt 0:00:30]} 28. Nxb5+ {[%emt 0:00:00]} axb5 {[%emt 0:00:00]} 29. Qa5+ {[%emt 0:01:00]} Kd7 {[%emt 0:00:00]} 30. Qd2+ {[%emt 0:00:30]} Rd3+ {[%emt 0:00:30]} 0-1